bitfinex/quotes_SOLUSD_20250830
["timestamp","ask_amount","ask_price","bid_price","bid_amount"]
[1756557489049,9.67954061,200.08,199.98,13.59559401]
[1756557489225,26.0,200.09,200.03,9.67954061]
[1756557489434,26.0,200.09,199.98,13.59559401]
[1756557489731,26.0,200.09,199.97,17.50262539]
[1756557489947,26.0,200.09,200.05,9.67954061]
[1756557490253,0.67,200.17,200.0,13.59559401]
[1756557490422,10.34954061,200.21,200.09,13.59559401]
[1756557490618,0.67,200.21,200.15,9.67954061]
[1756557490846,51.05335277,200.27,199.98,20.0]
[1756557490847,35.67954061,200.17,199.98,20.0]
[1756557491058,9.67954061,200.16,200.1,9.67954061]
[1756557491221,9.67954061,200.21,200.15,9.67954061]
[1756557491426,9.67954061,200.34,200.06,9.67954061]
[1756557491427,0.67,200.3,200.2,9.67954061]
[1756557491645,0.67,200.29,200.18,9.67954061]
[1756557491950,9.67954061,200.24,200.18,9.67954061]
[1756557492125,3.28146985,200.33,200.23,9.67954061]
[1756557492446,3.28146985,200.33,200.16,4.99600319]
[1756557492447,0.67,200.37,200.31,9.67954061]
[1756557492622,2.61060909,200.42,200.36,9.67954061]
[1756557492817,2.61060909,200.42,200.34,13.59559401]
[1756557493049,86.5,200.56,200.28,26.0]
[1756557493050,20.0,200.54,200.36,9.67954061]
[1756557493236,0.67,200.45,200.29,13.59559401]
[1756557493437,0.67,200.45,200.38,9.67954061]
[1756557493639,9.67954061,200.43,200.38,9.67954061]
[1756557493938,0.67,200.42,200.34,9.67954061]
[1756557494131,9.67954061,200.39,200.24,13.59559401]
[1756557494334,9.67954061,200.38,200.26,13.59559401]
[1756557494532,9.67954061,200.44,200.37,9.67954061]
[1756557494730,9.67954061,200.44,200.26,13.59559401]
[1756557494937,0.67,200.47,200.39,9.67954061]
[1756557495156,9.67954061,200.4,200.28,19.94]
[1756557495452,0.67,200.42,200.33,9.67954061]
[1756557495650,26.0,200.43,200.29,13.59559401]
[1756557495965,26.0,200.45,200.36,9.67954061]
[1756557496138,0.67,200.46,200.37,9.67954061]
[1756557496329,0.67,200.46,200.35,9.67954061]
[1756557496330,9.67954061,200.4,200.35,9.67954061]
[1756557496523,9.67954061,200.41,200.36,9.67954061]
[1756557496745,9.67954061,200.38,200.34,13.59559401]
[1756557497053,9.67954061,200.35,200.31,13.59559401]
[1756557497242,26.0,200.42,200.31,23.27513462]
[1756557497433,9.67954061,200.4,200.35,9.67954061]
[1756557497634,9.67954061,200.39,200.34,9.67954061]
[1756557497950,9.67954061,200.37,200.29,13.59559401]
[1756557498154,9.67954061,200.37,200.32,9.67954061]
[1756557498353,9.67954061,200.38,200.33,9.67954061]
[1756557498859,9.67954061,200.38,200.29,13.59559401]
[1756557498860,9.67954061,200.35,200.31,13.59559401]
[1756557499023,9.67954061,200.36,200.31,23.27513462]
[1756557499425,9.67954061,200.34,200.29,23.27513462]
[1756557499627,9.67954061,200.31,200.17,20.0]
[1756557499822,17.46171627,200.44,200.16,13.05584894]
[1756557499823,0.67,200.38,200.16,13.05584894]
[1756557500050,9.67954061,200.29,200.24,9.67954061]
[1756557500230,4.99176359,200.33,200.24,9.67954061]
[1756557500431,9.67954061,200.28,200.16,13.05584894]
[1756557500656,9.67954061,200.28,200.24,13.59559401]
[1756557500949,4.99176359,200.33,200.23,13.59559401]
[1756557501155,4.99176359,200.33,200.23,23.27513462]
[1756557501334,4.99176359,200.33,200.17,46.04]
[1756557501335,9.67954061,200.29,200.24,9.67954061]
[1756557501529,4.99176359,200.33,200.24,9.67954061]
[1756557501729,9.67954061,200.28,200.23,9.67954061]
[1756557502354,4.99201277,200.32,200.23,9.67954061]
[1756557502541,9.67954061,200.27,200.23,13.59559401]
[1756557502739,4.99201277,200.32,200.23,13.59559401]
[1756557502946,9.67954061,200.27,200.23,13.59559401]
[1756557503446,0.67,200.31,200.19,13.59559401]
[1756557503652,0.67,200.31,200.18,140.0]
[1756557503653,9.67954061,200.29,200.25,13.59559401]
[1756557503855,4.99201277,200.32,200.25,13.59559401]
[1756557503856,9.67954061,200.3,200.25,23.27513462]
[1756557504058,9.67954061,200.29,200.19,13.59559401]
[1756557504258,9.67954061,200.29,200.25,9.67954061]
[1756557504439,3.28041072,200.39,200.29,13.59559401]
[1756557504639,9.67954061,200.35,200.3,9.67954061]
[1756557505265,9.67954061,200.38,200.33,23.27513462]
[1756557505491,12.47407051,200.42,200.33,23.27513462]
[1756557505492,4.98969205,200.42,200.35,9.67954061]
[1756557505634,0.67,200.46,200.37,9.67954061]
[1756557505835,0.67,200.51,200.41,23.27513462]
[1756557506064,9.67954061,200.52,200.47,9.67954061]
[1756557506540,9.67954061,200.51,200.46,9.67954061]
[1756557506876,4.98708202,200.52,200.42,9.67954061]
[1756557506877,9.67954061,200.47,200.42,9.67954061]
[1756557507038,9.67954061,200.49,200.39,13.59559401]
[1756557507237,0.67,200.5,200.44,9.67954061]
[1756557507539,9.67954061,200.48,200.43,9.67954061]
[1756557507863,4.98708202,200.52,200.44,9.67954061]
[1756557507864,9.67954061,200.49,200.44,9.67954061]
[1756557508244,9.67954061,200.5,200.45,9.67954061]
[1756557508474,2.60775769,200.6,200.43,13.59559401]
[1756557508475,2.60775769,200.6,200.48,23.27513462]
[1756557508771,9.67954061,200.54,200.49,9.67954061]
[1756557509061,9.67954061,200.53,200.48,9.67954061]
[1756557509265,17.44852684,200.59,200.46,13.59559401]
[1756557509266,9.67954061,200.5,200.46,13.59559401]
[1756557509468,9.67954061,200.51,200.46,23.27513462]
[1756557509641,9.67954061,200.51,200.43,13.59559401]
[1756557509642,9.67954061,200.49,200.43,13.59559401]
[1756557509837,9.67954061,200.47,200.42,9.67954061]
[1756557510373,9.67954061,200.48,200.43,9.67954061]
[1756557510569,4.98800567,200.49,200.42,9.67954061]
[1756557510874,9.67954061,200.49,200.44,9.67954061]
[1756557511055,9.67954061,200.49,200.22,24.52516772]
[1756557511056,9.67954061,200.46,200.32,20.0]
[1756557511255,9.67954061,200.4,200.33,45.82]
[1756557511468,9.67954061,200.39,200.35,9.67954061]
[1756557511770,9.67954061,200.41,200.36,9.67954061]
[1756557511979,9.67954061,200.41,200.33,45.82]
[1756557512184,4.9891975,200.44,200.38,9.67954061]
[1756557512475,9.67954061,200.47,200.42,9.67954061]
[1756557512641,10.35954061,200.46,200.41,9.67954061]
[1756557512841,9.67954061,200.45,200.4,23.27513462]
[1756557513255,4.98781619,200.49,200.4,23.27513462]
[1756557513457,4.98781619,200.49,200.37,45.76]
[1756557513458,0.68,200.57,200.49,13.59559401]
[1756557513758,9.67954061,200.53,200.49,9.67954061]
[1756557514070,9.67954061,200.54,200.47,13.59559401]
[1756557514265,9.67954061,200.54,200.4,26.0]
[1756557514266,9.67954061,200.51,200.45,13.59559401]
[1756557514448,9.67954061,200.5,200.44,13.59559401]
[1756557514769,9.67954061,200.52,200.47,9.67954061]
[1756557515268,0.06,200.45,200.44,13.59559401]
[1756557515487,9.73954061,200.45,200.31,17.4724965]
[1756557515655,9.73954061,200.45,200.4,13.59559401]
[1756557515855,9.73954061,200.45,200.4,23.27513462]
[1756557516246,14.66900284,200.43,200.37,9.67954061]
[1756557516569,0.68,200.44,200.37,23.27513462]
[1756557516790,9.67954061,200.43,200.38,9.67954061]
[1756557516956,9.67954061,200.42,200.37,23.27513462]
[1756557517274,9.67954061,200.4,200.35,23.27513462]
[1756557517475,9.67954061,200.41,200.37,13.59559401]
[1756557517664,9.67954061,200.42,200.37,23.27513462]
[1756557517985,0.74,200.45,200.38,9.67954061]
[1756557517986,0.06,200.45,200.38,9.67954061]
[1756557518166,9.67954061,200.42,200.37,23.27513462]
[1756557518485,9.67954061,200.4,200.35,23.27513462]
[1756557518657,9.67954061,200.41,200.36,9.67954061]
[1756557518859,9.67954061,200.4,200.34,50.69148023]
[1756557519058,0.74,200.45,200.38,9.67954061]
[1756557519258,9.67954061,200.43,200.38,9.67954061]
[1756557519477,9.73954061,200.45,200.35,13.59559401]
[1756557519660,9.67954061,200.44,200.4,13.59559401]
[1756557520064,0.06,200.45,200.34,45.54]
[1756557520065,9.67954061,200.41,200.34,45.54]
[1756557520268,9.67954061,200.4,200.35,28.26631066]
[1756557520679,0.68,200.43,200.37,13.59559401]
[1756557520978,9.73954061,200.45,200.4,9.67954061]
[1756557521167,9.67954061,200.44,200.39,9.67954061]
[1756557521569,9.67954061,200.44,200.39,13.59559401]
[1756557521761,9.67954061,200.43,200.39,13.59559401]
[1756557521962,10.35954061,200.42,200.38,13.59559401]
[1756557522177,9.67954061,200.41,200.38,13.59559401]
[1756557522380,9.67954061,200.42,200.38,13.59559401]
[1756557522756,9.67954061,200.42,200.24,20.0]
[1756557522977,9.67954061,200.42,200.23,4.9942566]
[1756557522978,9.67954061,200.33,200.23,4.9942566]
[1756557523283,9.67954061,200.34,200.28,9.67954061]
[1756557523459,9.67954061,200.34,200.28,13.59559401]
[1756557523783,9.67954061,200.33,200.28,23.27513462]
[1756557523980,0.68,200.35,200.28,13.59559401]
[1756557524188,0.68,200.35,200.28,9.67954061]
[1756557524483,9.67954061,200.29,200.24,9.67954061]
[1756557524665,9.67954061,200.29,200.25,13.59559401]
[1756557524867,9.67954061,200.3,200.25,23.27513462]
[1756557525071,9.67954061,200.3,200.25,9.67954061]
[1756557525280,9.67954061,200.3,200.23,13.59559401]
[1756557525480,9.67954061,200.28,200.23,13.59559401]
[1756557525797,9.67954061,200.3,200.22,59.01559401]
[1756557526092,0.68,200.32,200.23,23.27513462]
[1756557526326,0.68,200.36,200.29,13.59559401]
[1756557526458,9.67954061,200.31,200.29,13.59559401]
[1756557526662,9.67954061,200.3,200.26,13.59559401]
[1756557526859,9.67954061,200.27,200.23,13.59559401]
[1756557527263,9.67954061,200.29,200.24,9.67954061]
[1756557527493,0.68,200.33,200.23,13.59559401]
[1756557527691,9.67954061,200.29,200.25,13.59559401]
[1756557527890,9.67954061,200.31,200.26,4.99350843]
[1756557528072,4.99101617,200.36,200.25,13.59559401]
[1756557528394,9.67954061,200.27,200.25,13.59559401]
[1756557528574,0.68,200.3,200.25,13.59559401]
[1756557528885,0.68,200.33,200.25,13.59559401]
[1756557529087,3.55996968,200.32,200.25,13.59559401]
[1756557529289,9.67954061,200.26,200.23,13.59559401]
[1756557529477,9.67954061,200.28,200.23,23.27513462]
[1756557529787,0.68,200.32,200.23,23.27513462]
[1756557530088,9.67954061,200.29,200.24,4.99400719]
[1756557530261,7.15359006,200.28,200.24,14.6735478]
[1756557530464,3.57669508,200.27,200.24,4.99400719]
[1756557530681,0.68,200.32,200.25,13.59559401]
[1756557530886,7.15371518,200.31,200.25,13.59559401]
[1756557531061,16.83325579,200.3,200.25,23.27513462]
[1756557531265,9.67954061,200.27,200.21,140.0]
[1756557531484,9.67954061,200.25,200.2,13.59559401]
[1756557531690,0.68,200.32,200.24,23.27513462]
[1756557531873,7.16691662,200.31,200.28,13.59559401]
[1756557532076,7.16691662,200.3,200.28,13.59559401]
[1756557532385,7.16691662,200.29,200.28,13.59559401]
[1756557533195,7.16691662,200.29,200.28,9.67954061]
[1756557533402,7.16691662,200.29,200.27,23.27513462]
[1756557533707,7.16691662,200.28,200.27,13.59559401]
[1756557533874,3.58350058,200.28,200.25,13.59559401]
[1756557534070,3.58350058,200.27,200.25,28.26882529]
[1756557534306,9.67954061,200.3,200.24,58.63559401]
[1756557534307,6.82128118,200.26,200.24,58.63559401]
[1756557534496,3.58350058,200.25,200.24,58.63559401]
[1756557534670,3.58350058,200.25,200.23,13.59559401]
[1756557534872,4.99226644,200.31,200.14,4.99650244]
[1756557534873,17.18056763,200.24,200.14,4.99650244]
[1756557535218,9.67954061,200.17,200.11,9.67954061]
[1756557535544,11.09997037,200.23,200.11,9.67954061]
[1756557535545,13.26304119,200.16,200.11,9.67954061]
[1756557535674,3.58350058,200.15,200.13,9.67954061]
[1756557535997,3.58350058,200.14,200.13,28.27188673]
[1756557536690,3.58350058,200.14,200.13,18.59234612]
[1756557537006,3.58350058,200.14,200.13,28.27188673]
[1756557537508,3.58350058,200.14,200.13,18.59234612]
[1756557537678,3.58350058,200.14,200.13,28.27188673]
[1756557537873,0.68,200.25,200.14,39.59559401]
[1756557538088,3.96257562,200.27,200.18,26.0]
[1756557538089,3.24054447,200.26,200.18,26.0]
[1756557538413,3.24054447,200.26,200.23,13.59559401]
[1756557538609,3.24054447,200.26,200.22,13.59559401]
[1756557538795,3.24054447,200.25,200.22,13.59559401]
[1756557538978,9.67954061,200.27,200.22,23.27513462]
[1756557539177,16.5224158,200.26,200.22,13.59559401]
[1756557539385,9.67954061,200.26,200.22,13.59559401]
[1756557539605,10.35954061,200.27,200.22,13.59559401]
[1756557539900,9.67954061,200.25,200.21,13.59559401]
[1756557540207,6.84133809,200.24,200.21,18.59013287]
[1756557540387,0.06,200.29,200.24,9.67954061]
[1756557540584,0.06,200.29,200.21,18.59013287]
[1756557540585,0.06,200.32,200.26,13.59559401]
[1756557540793,9.73954061,200.32,200.28,13.59559401]
[1756557540995,3.24061792,200.31,200.28,13.59559401]
[1756557541212,0.06,200.32,200.29,9.67954061]
[1756557541417,4.06638877,200.52,200.31,9.67954061]
[1756557541418,3.24049776,200.38,200.31,9.67954061]
[1756557541599,3.24049776,200.37,200.35,9.67954061]
[1756557541786,3.24049776,200.36,200.35,9.67954061]
[1756557541981,3.24167776,200.39,200.37,13.59559401]
[1756557542182,4.73293341,200.49,200.38,9.67954061]
[1756557542517,0.68,200.47,200.42,13.59559401]
[1756557542704,0.68,200.47,200.37,45.08]
[1756557542705,9.67954061,200.43,200.39,13.59559401]
[1756557542881,6.84579663,200.42,200.39,13.59559401]
[1756557543085,9.67954061,200.46,200.42,13.59559401]
[1756557543286,9.67954061,200.44,200.42,13.59559401]
[1756557543485,13.60107703,200.43,200.39,58.67559401]
[1756557543712,0.68,200.43,200.39,58.65559401]
[1756557543915,0.06,200.45,200.43,13.59559401]
[1756557544119,1e-08,200.45,200.44,73.52415876]
[1756557544519,1e-08,200.45,200.44,18.58461815]
[1756557544824,1e-08,200.45,200.42,4.98930502]
[1756557545019,1e-08,200.45,200.42,13.59559401]
[1756557545020,0.68000001,200.45,200.42,13.59559401]
[1756557545521,9.67954061,200.44,200.42,13.59559401]
[1756557545717,10.35954061,200.44,200.42,13.59559401]
[1756557545907,10.35954061,200.43,200.39,13.59559401]
[1756557546215,9.67954061,200.42,200.39,18.58578561]
[1756557546422,9.67954061,200.4,200.38,13.59559401]
[1756557546596,10.35954061,200.4,200.36,45.16]
[1756557546792,9.67954061,200.39,200.36,45.16]
[1756557546997,0.68,200.4,200.36,45.16]
[1756557547215,9.67954061,200.37,200.28,9.67954061]
[1756557547526,9.67954061,200.33,200.27,54.79954061]
[1756557548045,9.67954061,200.33,200.3,13.59559401]
[1756557548245,9.67954061,200.33,200.29,4.99276049]
[1756557548407,0.68,200.33,200.3,13.59559401]
[1756557548928,9.67954061,200.32,200.3,13.59559401]
[1756557549134,10.35954061,200.33,200.3,13.59559401]
[1756557549833,9.67954061,200.33,200.3,13.59559401]
[1756557550198,10.35954061,200.33,200.28,13.59559401]
[1756557550406,9.67954061,200.31,200.29,13.59559401]
[1756557550744,41.90000001,200.45,200.29,13.59559401]
[1756557550745,0.68,200.38,200.29,13.59559401]
[1756557551039,0.68,200.38,200.32,9.67954061]
[1756557551332,9.67954061,200.37,200.34,13.59559401]
[1756557551529,9.67954061,200.41,200.36,23.27513462]
[1756557551694,9.67954061,200.4,200.36,13.59559401]
[1756557551893,10.35954061,200.4,200.36,13.59559401]
[1756557552117,9.67954061,200.38,200.33,13.59559401]
[1756557552319,10.35954061,200.37,200.33,13.59559401]
[1756557552510,9.67954061,200.38,200.33,23.27513462]
[1756557552718,10.35954061,200.38,200.33,23.27513462]
[1756557553042,0.68,200.37,200.33,23.27513462]
[1756557553235,9.67954061,200.36,200.33,13.59559401]
[1756557553523,9.67954061,200.34,200.27,23.27513462]
[1756557553727,0.68,200.35,200.27,23.27513462]
[1756557553898,9.67954061,200.31,200.26,44.98]
[1756557554095,30.05293341,200.41,200.26,49.97331688]
[1756557554327,10.35954061,200.31,200.29,0.03]
[1756557554530,0.68,200.31,200.29,0.03]
[1756557554735,9.67954061,200.3,200.29,0.03]
[1756557555136,10.35954061,200.31,200.29,0.03]
[1756557555337,0.68,200.31,200.29,0.03]
[1756557555523,9.67954061,200.31,200.29,13.62559401]
[1756557556409,0.68,200.34,200.29,13.62559401]
[1756557556613,9.67954061,200.31,200.29,18.6181849]
[1756557557637,0.68,200.33,200.29,18.6181849]
[1756557557839,9.67954061,200.31,200.29,18.6181849]
[1756557558237,0.68,200.37,200.29,18.6181849]
[1756557558420,9.67954061,200.34,200.29,28.29772551]
[1756557558621,9.67954061,200.33,200.29,18.6181849]
[1756557558820,10.35954061,200.32,200.29,18.6181849]
[1756557559235,9.67954061,200.32,200.29,18.6181849]
[1756557559430,0.68,200.39,200.31,23.27513462]
[1756557559637,9.67954061,200.37,200.33,13.59559401]
[1756557559836,9.67954061,200.36,200.33,13.59559401]
[1756557560228,10.35954061,200.36,200.31,23.27513462]
[1756557560533,9.67954061,200.36,200.34,4.99151442]
[1756557560931,9.67954061,200.37,200.34,4.99151442]
[1756557561245,9.67954061,200.35,200.29,0.03]
[1756557561452,26.0,200.4,200.29,0.03]
[1756557561453,9.67954061,200.31,200.29,0.03]
[1756557561633,9.67954061,200.31,200.29,5.02270932]
[1756557561949,30.05293341,200.4,200.29,0.03]
[1756557561950,10.35954061,200.3,200.29,0.03]
[1756557562542,0.68,200.3,200.29,0.03]
[1756557562749,9.67954061,200.31,200.29,0.03]
[1756557563251,10.35954061,200.31,200.29,0.03]
[1756557563749,10.35954061,200.3,200.29,0.03]
[1756557564150,13.60712419,200.3,200.29,0.03]
[1756557564453,26.0,200.27,200.24,0.03]
[1756557564654,26.0,200.27,200.14,14.67604305]
[1756557564655,9.67954061,200.25,200.14,14.67604305]
[1756557564948,9.67954061,200.19,200.14,14.67604305]
[1756557565125,9.67954061,200.2,200.15,9.67954061]
[1756557565326,9.67954061,200.2,200.16,13.59559401]
[1756557565828,9.67954061,200.2,200.18,13.59559401]
[1756557566023,9.67954061,200.23,200.18,13.59559401]
[1756557566250,9.67954061,200.23,200.18,23.27513462]
[1756557566549,9.67954061,200.21,200.18,13.59559401]
[1756557566752,9.67954061,200.22,200.18,23.27513462]
[1756557566950,9.67954061,200.23,200.18,23.27513462]
[1756557567152,9.67954061,200.24,200.19,9.67954061]
[1756557567928,0.68,200.23,200.21,13.59559401]
[1756557568141,10.35954061,200.22,200.2,4.99500499]
[1756557568344,9.67954061,200.21,200.2,18.590599]
[1756557568749,9.67954061,200.21,200.16,67.75513462]
[1756557568948,9.67954061,200.21,200.18,13.59559401]
[1756557569739,10.35954061,200.22,200.17,13.59559401]
[1756557569959,10.35954061,200.22,200.18,4.99550404]
[1756557570457,26.0,200.3,200.18,4.99550404]
[1756557570458,10.35954061,200.21,200.18,4.99550404]
[1756557570633,9.67954061,200.21,200.18,4.99550404]
[1756557570975,9.67954061,200.22,200.18,4.99550404]
[1756557571262,9.67954061,200.23,200.18,14.67504465]
[1756557571469,0.71,200.22,200.18,14.67504465]
[1756557571644,9.67954061,200.19,200.14,140.0]
[1756557571837,9.67954061,200.18,200.14,18.59209645]
[1756557572230,9.67954061,200.2,200.16,13.59559401]
[1756557572450,9.67954061,200.19,200.16,13.59559401]
[1756557572642,10.38954061,200.19,200.16,13.59559401]
[1756557573458,4.05293341,200.3,200.15,13.59559401]
[1756557573636,9.67954061,200.19,200.18,0.03]
[1756557574868,0.71,200.21,200.18,0.03]
[1756557575162,9.67954061,200.19,200.16,3.41757061]
[1756557575347,9.67954061,200.18,200.15,0.03]
[1756557575669,9.67954061,200.16,200.15,0.03]
[1756557576243,9.67954061,200.16,200.15,13.62559401]
[1756557576437,10.38954061,200.16,200.15,0.03]
[1756557577362,9.67954061,200.16,200.15,0.03]
[1756557578870,10.38954061,200.16,200.15,0.03]
[1756557579561,0.71,200.16,200.15,0.03]
[1756557579735,9.67954061,200.16,200.15,0.03]
[1756557580156,10.38954061,200.16,200.15,0.03]
[1756557581380,0.71,200.19,200.15,13.62559401]
[1756557581670,0.71,200.18,200.15,13.62559401]
[1756557581838,3.23588187,200.24,200.15,13.62559401]
[1756557581839,6.48089374,200.16,200.15,13.62559401]
[1756557582050,7.19089374,200.16,200.15,13.62559401]
[1756557582261,7.19089374,200.16,200.15,5.02625281]
[1756557582643,7.19089374,200.16,200.15,0.03]
[1756557583976,0.71,200.16,200.15,0.03]
[1756557584181,7.19089374,200.16,200.15,0.03]
[1756557591363,10.43308865,200.16,200.15,0.03]
[1756557591964,3.95219491,200.16,200.15,0.03]
[1756557592182,4.05293341,200.22,200.15,0.03]
[1756557592359,6.48089374,200.17,200.15,0.03]
[1756557592559,0.71,200.21,200.15,0.03]
[1756557593058,6.48089374,200.19,200.15,0.03]
[1756557593285,3.95332641,200.21,200.15,0.03]
[1756557593286,0.71,200.21,200.15,0.03]
[1756557593462,3.24442038,200.23,200.16,20.07648775]
[1756557593666,6.48089374,200.2,200.16,20.07648775]
[1756557593882,0.06,200.19,200.16,20.07648775]
[1756557594076,6.54089374,200.19,200.16,13.59559401]
[1756557594586,0.06,200.19,200.16,4.99600319]
[1756557594783,6.54089374,200.19,200.16,4.99600319]
[1756557595273,6.48089374,200.17,200.15,0.03]
[1756557595480,0.71,200.18,200.15,0.03]
[1756557595481,9.72634648,200.16,200.15,0.03]
[1756557595664,10.43615588,200.16,200.15,0.03]
[1756557599473,14.04680448,200.16,200.15,0.03]
[1756557599655,13.33680448,200.16,200.15,0.03]
[1756557599983,9.72615588,200.16,200.15,0.03]
[1756557600171,10.43615588,200.16,200.15,0.03]
[1756557600369,3.24526214,200.16,200.15,0.03]
[1756557600577,0.06,200.19,200.15,20.17648775]
[1756557600782,6.48089374,200.18,200.15,0.03]
[1756557601468,6.48089374,200.16,200.15,0.03]
[1756557601793,40.81533945,200.16,200.12,0.03]
[1756557601967,6.48089374,200.13,200.12,0.03]
[1756557602283,3.25087758,200.13,200.12,0.03]
[1756557602793,15.39852343,200.13,200.12,0.03]
[1756557602966,19.00968148,200.13,200.12,0.03]
[1756557603160,14.01292937,200.13,200.12,0.03]
[1756557603565,3.25087758,200.13,200.12,0.03]
[1756557603780,6.48089374,200.13,200.12,0.03]
[1756557604171,6.48089374,200.14,200.12,0.03]
[1756557604373,0.06,200.19,200.12,13.62559401]
[1756557604577,6.48089374,200.18,200.14,13.59559401]
[1756557604998,6.48089374,200.17,200.16,13.59559401]
[1756557605197,9.73775026,200.17,200.14,13.59559401]
[1756557605495,6.48089374,200.15,200.12,5.02695075]
[1756557605788,6.48089374,200.14,200.13,13.59559401]
[1756557606567,6.48089374,200.14,200.12,13.62559401]
[1756557606568,9.74059132,200.14,200.12,13.62559401]
[1756557606766,9.74039401,200.13,200.12,13.62559401]
[1756557607079,0.67,200.17,200.12,13.62559401]
[1756557607384,6.48089374,200.14,200.12,13.62559401]
[1756557607583,3.26107143,200.13,200.12,13.62559401]
[1756557607985,3.26107143,200.13,200.12,18.6225958]
[1756557608287,3.26107143,200.13,200.12,0.03]
[1756557608463,6.48089374,200.14,200.12,0.03]
[1756557608667,0.67,200.17,200.12,0.03]
[1756557608668,3.26107143,200.13,200.12,0.03]
[1756557608870,6.48089374,200.14,200.12,0.03]
[1756557609182,3.26107143,200.13,200.12,0.03]
[1756557609700,6.48089374,200.15,200.12,0.03]
[1756557609900,3.26107143,200.14,200.12,0.03]
[1756557610278,3.26107143,200.14,200.12,6.51089374]
[1756557610478,6.48089374,200.18,200.15,4.99625281]
[1756557610683,6.89177343,200.17,200.15,4.99625281]
[1756557610889,7.15089374,200.18,200.15,18.59184682]
[1756557610890,6.89177343,200.16,200.15,18.59184682]
[1756557611191,6.89241139,200.16,200.15,13.59559401]
[1756557611496,13.37330513,200.16,200.15,13.59559401]
[1756557612198,14.04330513,200.16,200.15,13.59559401]
[1756557612499,14.04330513,200.16,200.12,13.62559401]
[1756557612803,6.48089374,200.13,200.12,13.62559401]
[1756557613107,9.74555523,200.13,200.12,13.62559401]
[1756557613295,3.26466149,200.13,200.12,13.62559401]
[1756557613504,3.93466149,200.13,200.12,13.62559401]
[1756557613674,3.26466149,200.13,200.12,13.62559401]
[1756557614293,6.48089374,200.14,200.12,13.62559401]
[1756557614581,3.26466149,200.13,200.12,13.62559401]
[1756557615088,9.74555523,200.13,200.12,13.62559401]
[1756557616000,13.37500149,200.13,200.12,13.62559401]
[1756557616299,6.89410775,200.13,200.12,13.62559401]
[1756557616497,13.37500149,200.13,200.12,13.62559401]
[1756557617387,6.89410775,200.13,200.12,13.62559401]
[1756557617700,14.04500149,200.13,200.12,0.03]
[1756557617882,18.09915576,200.13,200.12,0.03]
[1756557618203,14.04500149,200.13,200.07,4.99821142]
[1756557618517,6.48089374,200.08,199.96,6.894108]
[1756557618677,6.89270044,200.07,200.0,0.1]
[1756557618876,6.48089374,200.01,199.97,5.10075011]
[1756557619181,6.48089374,200.01,199.98,0.1]
[1756557619384,6.48089374,200.02,199.98,13.69559401]
[1756557619610,6.48089374,200.01,199.98,13.69559401]
[1756557620112,0.67,200.06,199.98,13.59559401]
[1756557620284,6.48089374,200.03,199.99,0.1]
[1756557620988,6.48089374,200.03,200.01,13.59559401]
[1756557621189,0.67,200.07,200.01,13.59559401]
[1756557621385,6.48089374,200.02,200.01,13.59559401]
[1756557622492,4.08328227,200.1,200.01,13.59559401]
[1756557622710,0.67,200.15,200.07,6.48089374]
[1756557622887,6.48089374,200.12,200.08,13.59559401]
[1756557623203,6.48089374,200.12,200.09,4.99775101]
[1756557623790,6.48089374,200.11,200.09,4.99775101]
[1756557624192,9.13903821,200.17,200.03,4.99925011]
[1756557624193,0.67,200.1,200.03,4.99925011]
[1756557624404,0.67,200.13,200.06,20.07648775]
[1756557624582,6.48089374,200.11,200.06,20.07648775]
[1756557624779,4.14328227,200.17,200.08,13.59559401]
[1756557624983,3.26004295,200.16,200.12,17.48950628]
[1756557625207,3.26004295,200.15,200.12,17.48950628]
[1756557625701,0.06,200.17,200.13,13.59559401]
[1756557625905,6.54089374,200.17,200.13,13.59559401]
[1756557626107,6.48089374,200.14,200.08,12.49445321]
[1756557626281,6.48089374,200.09,200.02,0.1]
[1756557626484,0.67,200.08,200.01,4.99971385]
[1756557626695,0.67,200.11,200.02,0.1]
[1756557627004,6.48089374,200.07,200.05,13.59559401]
[1756557627206,0.67,200.11,200.05,13.59559401]
[1756557627411,6.48089374,200.07,200.05,13.59559401]
[1756557627711,6.48089374,200.06,200.05,13.59559401]
[1756557628891,6.48089374,200.07,200.05,13.59559401]
[1756557629094,6.48089374,200.07,200.06,18.59409445]
[1756557629292,6.48089374,200.07,200.06,13.59559401]
[1756557629700,10.41011814,200.07,200.0,43.02]
[1756557629921,6.48089374,200.04,200.01,13.59559401]
[1756557630123,6.48089374,200.06,200.01,20.07648775]
[1756557630419,30.08328227,200.12,199.99,13.59559401]
[1756557630420,6.48089374,200.03,199.99,13.59559401]